fUST/lending_fUST_20241103
["ID","MTS","AMOUNT","RATE_DAILY","PERIOD"]
[341191546,1730583046942,-668.90354998,0.00030354,2]
[341191547,1730583046952,-525.64,0.0003041,4]
[341191548,1730583046961,-606.07,0.0003041,4]
[341191549,1730583046972,-691.25,0.0003041,4]
[341191550,1730583046981,-500.0,0.0003041,4]
[341191551,1730583046991,-963.04,0.0003041,4]
[341191552,1730583047000,-1020.68,0.0003041,4]
[341191553,1730583047011,-2119.41,0.0003041,3]
[341191554,1730583047024,-500.0,0.0003041,4]
[341191555,1730583047034,-500.0,0.0003041,4]
[341191556,1730583047043,-500.0,0.0003046,5]
[341191557,1730583047053,-153.0,0.00030466,2]
[341191558,1730583047062,-153.0,0.00030466,2]
[341191559,1730583047071,-153.0,0.00030466,2]
[341191560,1730583047082,-153.0,0.00030466,2]
[341191561,1730583047091,-500.0,0.00030553,4]
[341191562,1730583047102,-500.0,0.00030553,4]
[341191563,1730583047112,-500.0,0.00030553,4]
[341191564,1730583047121,-500.0,0.00030553,4]
[341191565,1730583047131,-525.64,0.00030684,4]
[341191566,1730583047140,-606.07,0.00030684,4]
[341191567,1730583047150,-691.25,0.00030684,4]
[341191568,1730583047159,-500.0,0.00030684,4]
[341191569,1730583047170,-963.04,0.00030684,4]
[341191570,1730583047181,-1020.68,0.00030684,4]
[341191571,1730583047190,-2119.41,0.00030684,3]
[341191572,1730583047200,-500.0,0.00030684,4]
[341191573,1730583047210,-500.0,0.00030684,4]
[341191574,1730583047220,-7823.68,0.00030789,10]
[341191575,1730583047231,-8875.03988763,0.00030799,2]
[341191576,1730583047240,-500.0,0.00030827,4]
[341191577,1730583047249,-500.0,0.00030827,4]
[341191578,1730583047259,-500.0,0.00030827,4]
[341191579,1730583047268,-500.0,0.00030827,4]
[341191580,1730583047278,-525.64,0.00030958,4]
[341191581,1730583047288,-606.07,0.00030958,4]
[341191582,1730583047297,-691.25,0.00030958,4]
[341191583,1730583047306,-500.0,0.00030958,4]
[341191584,1730583047316,-963.04,0.00030958,4]
[341191585,1730583047326,-1020.68,0.00030958,4]
[341191586,1730583047336,-2119.41,0.00030958,3]
[341191587,1730583047345,-500.0,0.00030958,4]
[341191588,1730583047355,-500.0,0.00030958,4]
[341191589,1730583047365,-8875.03988764,0.00031,2]
[341191590,1730583047375,-500.0,0.00031101,4]
[341191591,1730583047384,-500.0,0.00031101,4]
[341191592,1730583047394,-500.0,0.00031101,4]
[341191593,1730583047403,-323.22681151,0.00031101,4]
[341191594,1730583047412,-668.90354998,0.00031127,2]
[341191595,1730583047423,-2008.758,0.00031133,2]
[341191596,1730583047435,-237.1605,0.0003119,2]
[341191597,1730583047446,-525.64,0.00031232,4]
[341191598,1730583047458,-606.07,0.00031232,4]
[341191599,1730583047471,-691.25,0.00031232,4]
[341191600,1730583047481,-185.1,0.00031232,4]
[341191601,1730583047491,-963.04,0.00031232,4]
[341191602,1730583047500,-1020.68,0.00031232,4]
[341191603,1730583047510,-2119.41,0.00031232,3]
[341191604,1730583047520,-500.0,0.00031232,4]
[341191605,1730583047530,-500.0,0.00031232,4]
[341191606,1730583047540,-1000.0,0.00031342,5]
[341191607,1730583047550,-500.0,0.00031375,4]
[341191608,1730583047560,-500.0,0.00031375,4]
[341191609,1730583047570,-500.0,0.00031375,4]
[341191610,1730583047580,-165.649,0.0003144,31]
[341191611,1730583047597,-525.64,0.00031506,4]
[341191612,1730583047607,-606.07,0.00031506,4]
[341191613,1730583047616,-691.25,0.00031506,4]
[341191614,1730583047626,-963.04,0.00031506,4]
[341191615,1730583047636,-1020.68,0.00031506,4]
[341191616,1730583047650,-2119.41,0.00031506,3]
[341191617,1730583047660,-500.0,0.00031506,4]
[341191618,1730583047669,-500.0,0.00031506,4]
[341191619,1730583047680,-162.210416,0.00031546,2]
[341191620,1730583047690,-504.21648403,0.00031649,4]
[341191621,1730583047699,-500.0,0.00031649,4]
[341191622,1730583047710,-500.0,0.00031649,4]
[341191623,1730583047721,-153.996106,0.00031713,2]
[341191624,1730583047733,-272.105184,0.00031713,2]
[341191625,1730583047744,-380.660848,0.00031713,2]
[341191626,1730583047755,-380.660847,0.00031713,2]
[341191627,1730583047765,-595.882846,0.00031713,2]
[341191628,1730583047776,-160.0,0.0003173,3]
[341191629,1730583047786,-525.64,0.0003178,4]
[341191630,1730583047795,-606.07,0.0003178,4]
[341191631,1730583047805,-691.25,0.0003178,4]
[341191632,1730583047815,-963.04,0.0003178,4]
[341191633,1730583047824,-1020.68,0.0003178,4]
[341191634,1730583047834,-2119.41,0.0003178,3]
[341191635,1730583047844,-500.0,0.0003178,4]
[341191636,1730583047854,-500.0,0.0003178,4]
[341191637,1730583047864,-1000.0,0.0003183,5]
[341191638,1730583047874,-668.90354998,0.000319,2]
[341191639,1730583047884,-625.8932854,0.0003192,2]
[341191640,1730583047893,-500.0,0.00031923,4]
[341191641,1730583047902,-500.0,0.00031923,4]
[341191642,1730583047912,-500.0,0.00031973,5]
[341191643,1730583047922,-500.0,0.00031973,5]
[341191644,1730583047932,-417.8752227,0.00031973,2]
[341191645,1730583047942,-211.079098,0.00031973,2]
[341191646,1730583047951,-211.079098,0.00031973,2]
[341191647,1730583047961,-211.079098,0.00031973,2]
[341191648,1730583047971,-211.079098,0.00031973,2]
[341191649,1730583047980,-211.079098,0.00031973,2]
[341191650,1730583047990,-211.079098,0.00031973,2]
[341191651,1730583048000,-797.42,0.00032,4]
[341191652,1730583048010,-72020.78544376,0.00032,15]
[341191654,1730583510990,157.646986,0.00013973,2]
[341191656,1730584028019,161.747468,0.00013973,2]
[341191678,1730584231673,-166.666666,0.0002456,2]
[341191679,1730584231684,-1049.76494,0.00025046,2]
[341191680,1730584231696,-162.5,0.00025192,2]
[341191681,1730584231706,-166.666666,0.00025229,2]
[341191682,1730584231718,-162.5,0.00025261,2]
[341191683,1730584231729,-162.5,0.0002533,2]
[341191684,1730584231739,-162.5,0.00025399,2]
[341191685,1730584231751,-300.0,0.00025431,2]
[341191686,1730584231761,-300.0,0.00025431,2]
[341191687,1730584231771,-162.5,0.00025468,2]
[341191688,1730584231780,-162.5,0.00025538,2]
[341191689,1730584231789,-162.5,0.00025607,2]
[341191690,1730584231798,-162.5,0.00025676,2]
[341191691,1730584231807,-162.5,0.00025745,2]
[341191692,1730584231816,-24900.0,0.00025774,2]
[341191693,1730584231826,-162.5,0.00025814,2]
[341191694,1730584231837,-162.5,0.00025883,2]
[341191695,1730584231849,-166.666666,0.00025899,2]
[341191696,1730584231860,-162.5,0.00025952,2]
[341191697,1730584231869,-162.5,0.00026021,2]
[341191698,1730584231881,-162.5,0.0002609,2]
[341191699,1730584231892,-162.5,0.00026159,2]
[341191700,1730584231902,-162.5,0.00026229,2]
[341191701,1730584231911,-162.5,0.00026298,2]
[341191702,1730584231921,-162.5,0.00026367,2]
[341191703,1730584231932,-162.5,0.00026436,2]
[341191704,1730584231942,-162.5,0.00026505,2]
[341191705,1730584231956,-166.666666,0.00026568,2]
[341191706,1730584231966,-584.18737181,0.00026619,2]
[341191707,1730584231992,-404.27686992,0.00026619,2]
[341191708,1730584232008,-441.04596982,0.00026619,2]
[341191709,1730584232019,-2627.23131567,0.00026619,2]
[341191710,1730584232029,-193.5187716,0.00026704,2]
[341191711,1730584232038,-500.0,0.00026929,2]
[341191712,1730584232048,-166.666666,0.00027238,2]
[341191713,1730584232058,-420.0,0.00027538,2]
[341191714,1730584232070,-166.666666,0.00027908,2]
[341191715,1730584232080,-420.0,0.00027974,2]
[341191716,1730584232089,-1000.0,0.00028298,5]
[341191717,1730584232099,-500.0,0.000288,2]
[341191718,1730584232108,-469.15160687,0.000288,2]
[341191719,1730584232117,-500.0,0.000288,2]
[341191720,1730584232126,-415.0,0.000288,2]
[341191721,1730584232135,-194.83355254,0.00028801,2]
[341191722,1730584232144,-4056.74152719,0.00028802,2]
[341191723,1730584232154,-587.0,0.0002982,2]
[341191724,1730584232163,-163.889,0.0003,2]
[341191725,1730584232172,-502.11399633,0.00030136,4]
[341191726,1730584232183,-515.47991266,0.00030136,4]
[341191727,1730584232203,-500.0,0.00030136,4]
[341191728,1730584232214,-500.0,0.00030136,4]
[341191729,1730584232223,-501.34584197,0.00030136,4]
[341191730,1730584232233,-502.97831887,0.00030136,4]
[341191731,1730584232376,-509.47477982,0.00030136,4]
[341191732,1730584232387,-463.93,0.00030136,4]
[341191733,1730584232396,-500.0,0.00030136,4]
[341191734,1730584232406,-120.61953383,0.00030136,4]
[341191735,1730584232418,-362.09937,0.00030136,4]
[341191753,1730584238083,-500.0,0.000288,2]
[341191755,1730584238093,-500.0,0.000288,2]
[341191757,1730584238103,-500.0,0.000288,2]
[341191760,1730584238113,-500.0,0.000288,2]
[341191762,1730584238122,-500.0,0.000288,2]
[341191764,1730584238131,-17.28109617,0.00030136,4]
[341191766,1730584238141,-521.83850951,0.00030136,4]
[341191768,1730584238150,-500.0,0.00030136,4]
[341191770,1730584238159,-500.0,0.00030136,4]
[341191772,1730584238168,-500.0,0.00030136,4]
[341191774,1730584238177,-500.0,0.00030136,4]
[341191776,1730584238186,-500.0,0.00030136,4]
[341191778,1730584238196,-500.0,0.00030136,4]
[341191780,1730584238205,-508.47140266,0.00030136,4]
[341191782,1730584238214,-500.0,0.00030136,4]
[341191784,1730584238223,-500.0,0.00030136,4]
[341191786,1730584238234,-500.0,0.00030136,4]
[341191788,1730584238244,-461.18590126,0.00030136,4]
[341191790,1730584238254,-500.0,0.00030136,4]
[341191792,1730584238264,-500.0,0.00030136,4]
[341191794,1730584238274,-500.0,0.00030136,4]
[341191797,1730584238284,-500.0,0.00030136,4]
[341191799,1730584238296,-500.0,0.00030136,4]
[341191801,1730584238305,-500.0,0.00030136,4]
[341191802,1730584238316,-500.0,0.00030136,4]
[341191803,1730584238326,-682.16,0.00030136,4]
[341191804,1730584238335,-500.0,0.00030136,4]
[341191805,1730584238346,-1501.25,0.00030136,3]
[341191806,1730584238357,-500.0,0.00030136,4]
[341191807,1730584238366,-500.0,0.00030136,4]
[341191808,1730584238375,-509.48107672,0.00030136,4]
[341191809,1730584238384,-722.99,0.00030136,4]
[341191810,1730584238406,-500.0,0.00030136,4]
[341191811,1730584238416,-156.37975372,0.00030409,2]
[341191812,1730584238426,-311.49393094,0.0003041,4]
[341191813,1730584238436,-500.0,0.0003041,4]
[341191814,1730584238445,-500.0,0.0003041,4]
[341191815,1730584238456,-500.0,0.0003041,4]
[341191816,1730584238466,-500.0,0.0003041,4]
[341191817,1730584238475,-500.0,0.0003041,4]
[341191818,1730584238485,-500.0,0.0003041,4]
[341191819,1730584238496,-500.0,0.0003041,4]
[341191820,1730584238509,-500.0,0.0003041,4]
[341191821,1730584238519,-500.0,0.0003041,4]
[341191822,1730584238530,-682.16,0.0003041,4]
[341191823,1730584238541,-500.0,0.0003041,4]
[341191824,1730584238551,-1501.25,0.0003041,3]
[341191825,1730584238562,-423.51,0.0003041,4]
[341191826,1730584238572,-722.99,0.0003041,4]
[341191827,1730584238582,-500.0,0.0003041,4]
[341191828,1730584238594,-500.0,0.00030632,5]
[341191829,1730584238606,-352.24,0.00030684,4]
[341191830,1730584238617,-500.0,0.00030684,4]
[341191831,1730584238626,-500.0,0.00030684,4]
[341191832,1730584238636,-500.0,0.00030684,4]
[341191833,1730584238645,-182.71,0.00030684,4]
[341191834,1730584238655,-500.0,0.00030684,4]
[341191835,1730584238665,-500.0,0.00030684,4]
[341191836,1730584238675,-500.0,0.00030684,4]
[341191837,1730584238684,-500.0,0.00030684,4]
[341191838,1730584238694,-682.16,0.00030684,4]
[341191839,1730584238703,-243.86,0.00030684,4]
[341191840,1730584238713,-1501.25,0.00030684,3]
[341191841,1730584238722,-722.99,0.00030684,4]
[341191842,1730584238731,-500.0,0.00030684,4]
[341191843,1730584238741,-1500.0,0.00030803,5]
[341191844,1730584238752,-500.0,0.00030958,4]
[341191845,1730584238764,-500.0,0.00030958,4]
[341191846,1730584238774,-500.0,0.00030958,4]
[341191847,1730584238784,-500.0,0.00030958,4]
[341191848,1730584238793,-500.0,0.00030958,4]
[341191849,1730584238803,-500.0,0.00030958,4]
[341191850,1730584238812,-500.0,0.00030958,4]
[341191851,1730584238822,-682.16,0.00030958,4]
[341191852,1730584238832,-1501.25,0.00030958,3]
[341191853,1730584238841,-722.99,0.00030958,4]
[341191854,1730584238851,-500.0,0.00030958,4]
[341191855,1730584238860,-4056.74152719,0.00030985,2]
[341191856,1730584238870,-211.079098,0.00031151,2]
[341191857,1730584238879,-211.079098,0.00031151,2]
[341191858,1730584238889,-211.079098,0.00031151,2]
[341191859,1730584238898,-211.079098,0.00031151,2]
[341191860,1730584238907,-211.079098,0.00031151,2]
[341191861,1730584238916,-5851.85,0.00031202,10]
[341191862,1730584238925,-83.37958433,0.00031212,10]
[341191863,1730584238939,-1268.09129459,0.00031212,10]
[341191866,1730584239868,-500.0,0.00031232,4]
[341191867,1730584239879,-500.0,0.00031232,4]
[341191868,1730584239891,-500.0,0.00031232,4]
[341191869,1730584239900,-500.0,0.00031232,4]
[341191870,1730584239910,-500.0,0.00031232,4]
[341191871,1730584239920,-500.0,0.00031232,4]
[341191872,1730584239930,-500.0,0.00031232,4]
[341191873,1730584239940,-682.16,0.00031232,4]
[341191874,1730584239949,-1501.25,0.00031232,3]
[341191875,1730584239958,-722.99,0.00031232,4]
[341191876,1730584239968,-500.0,0.00031232,4]
[341191877,1730584239977,-500.0,0.00031253,5]
[341191878,1730584239987,-400.0,0.000314,4]
[341191879,1730584239995,-500.0,0.00031506,4]
[341191880,1730584240007,-500.0,0.00031506,4]
[341191881,1730584240016,-500.0,0.00031506,4]
[341191882,1730584240025,-500.0,0.00031506,4]
[341191883,1730584240035,-500.0,0.00031506,4]
[341191884,1730584240044,-140.76922407,0.00031506,4]
[341192009,1730584702485,161.491754,0.00013973,2]
[341192047,1730585431879,-250.0,0.00027468,2]
[341192049,1730585431889,-657.51888751,0.00027522,2]
[341192051,1730585431899,-166.666667,0.00027622,2]
[341192053,1730585431909,-300.0,0.00027841,2]
[341192055,1730585431919,-300.0,0.00027841,2]
[341192057,1730585431929,-14520.44956657,0.00027842,2]
[341192060,1730585431942,-847.953925,0.00027842,2]
[341192063,1730585431960,-3028.79203191,0.00027842,2]
[341192065,1730585431971,-316.09929999,0.00027842,2]
[341192099,1730585438091,-5528.05693938,0.00027842,2]
[341192110,1730585442958,-658.64823715,0.00027842,2]
[341192111,1730585442968,-165.155358,0.00027944,2]
[341192112,1730585442977,-165.155358,0.00028672,2]
[341192113,1730585442987,-165.04104685,0.000294,2]
[341192114,1730585442997,-0.11431115,0.000294,2]
[341192115,1730585443008,-879.13417016,0.00030036,2]
[341192116,1730585443019,-1656.32928436,0.00030036,2]
[341192118,1730585443029,-506.67383961,0.00030136,4]
[341192120,1730585443038,-500.0,0.00030136,4]
[341192121,1730585443048,-500.0,0.00030136,4]
[341192122,1730585443057,-500.0,0.00030136,4]
[341192123,1730585443066,-500.0,0.00030136,4]
[341192124,1730585443076,-307.3008397,0.00030136,4]
[341192125,1730585443088,-192.6991603,0.00030136,4]
[341192126,1730585443099,-467.24,0.00030136,4]
[341192127,1730585443108,-500.0,0.00030136,4]
[341192128,1730585443119,-500.0,0.00030136,4]
[341192129,1730585443129,-500.0,0.00030136,4]
[341192130,1730585443142,-266.48352355,0.00030136,4]
[341192141,1730585445935,-233.51647645,0.00030136,4]
[341192142,1730585445947,-183.08930172,0.00030136,4]
[341192143,1730585445956,-494.0090241,0.00030136,4]
[341192144,1730585445970,-5.9909759,0.00030136,4]
[341192145,1730585445981,-333.72168924,0.00030136,4]
[341192146,1730585667720,161.382545,0.00013973,2]
[341192150,1730586139392,162.659039,0.00013973,2]
[341192164,1730586504449,14120.9820251,0.0002,2]
[341192165,1730586520368,1517.3067144,0.0002,2]
[341192169,1730586526929,4334.01449329,0.0002,2]
[341192170,1730586528406,294533.0,0.0001999,2]
[341192171,1730586528575,350.31273529,0.0002,2]
[341192221,1730586632184,-1527.527744,0.00020377,2]
[341192223,1730586632195,-161.26600489,0.000209,2]
[341192224,1730586632205,-260.92152842,0.00021,2]
[341192226,1730586632216,-235.14191845,0.00021,2]
[341192228,1730586632227,-166.666666,0.00024352,2]
[341192229,1730586632239,-151.21463281,0.00026458,2]
[341192231,1730586632253,-98.78536719,0.00026458,2]
[341192232,1730586632263,-250.0,0.00026531,2]
[341192234,1730586632273,-213.98095407,0.00026562,2]
[341192236,1730586632283,-250.0,0.00026603,2]
[341192238,1730586632293,-300.0,0.00026662,2]
[341192240,1730586632307,-300.0,0.00026662,2]
[341192241,1730586632318,-5000.0,0.00026662,2]
[341192242,1730586632329,-24900.0,0.00026663,2]
[341192243,1730586632339,-250.0,0.00026676,2]
[341192244,1730586632350,-250.0,0.00026749,2]
[341192245,1730586632361,-250.0,0.00026821,2]
[341192246,1730586632371,-2604.76711377,0.00026866,2]
[341192247,1730586632380,-250.0,0.00026894,2]
[341192248,1730586632389,-250.0,0.00026966,2]
[341192249,1730586632400,-250.0,0.00027039,2]
[341192250,1730586632409,-250.0,0.00027111,2]
[341192251,1730586632419,-250.0,0.00027184,2]
[341192252,1730586632428,-250.0,0.00027257,2]
[341192253,1730586632437,-250.0,0.00027329,2]
[341192254,1730586632447,-250.0,0.00027402,2]
[341192255,1730586632456,-250.0,0.00027474,2]
[341192256,1730586632466,-250.0,0.00027547,2]
[341192257,1730586632475,-250.0,0.00027619,2]
[341192258,1730586632485,-250.0,0.00027692,2]
[341192259,1730586632494,-598.60431685,0.00027742,2]
[341192260,1730586632503,-250.0,0.00027765,2]
[341192261,1730586632516,-250.0,0.00027837,2]
[341192262,1730586632537,-500.0,0.00027973,2]
[341192263,1730586632548,-240.63931209,0.00028418,2]
[341192264,1730586632558,-500.0,0.00028562,2]
[341192265,1730586632568,-500.0,0.00028562,2]
[341192266,1730586632577,-500.0,0.00028562,2]
[341192267,1730586632589,-265.32769592,0.00028562,2]
[341192268,1730586632599,-500.0,0.00028562,2]
[341192269,1730586632611,-127.10797981,0.00028562,2]
[341192270,1730586632626,-372.89202019,0.00028562,2]
[341192271,1730586632638,-500.0,0.00028562,2]
[341192272,1730586632651,-361.10803908,0.00028562,2]
[341192273,1730586632662,-372.43105576,0.00028562,2]
[341192274,1730586632671,-458.07447857,0.00028562,2]
[341192277,1730586638617,-213.98095406,0.00026576,2]
[341192278,1730586638627,-152.54699876,0.00027691,2]
[341192279,1730586638637,-544.23991034,0.00027691,2]
[341192280,1730586638650,-500.0,0.00027691,2]
[341192281,1730586638660,-500.0,0.00027691,2]
[341192282,1730586638670,-500.0,0.00027691,2]
[341192283,1730586638679,-286.83410181,0.00027691,2]
[341192284,1730586638689,-507.6608195,0.00027691,2]
[341192285,1730586638700,-500.0,0.00027691,2]
[341192286,1730586638712,-5000.0,0.00028604,2]
[341192287,1730586638723,-8519.67515419,0.00028615,2]
[341192288,1730586638734,-420.0,0.00028834,2]
[341192289,1730586638744,-8519.67515419,0.00028997,2]
[341192290,1730586638754,-1324.62099369,0.00029006,2]
[341192291,1730586638766,-2604.76711375,0.00029014,2]
[341192292,1730586638776,-8519.67515419,0.00029234,2]
[341192293,1730586638785,-500.0,0.00029292,5]
[341192294,1730586638795,-6470.65154717,0.00029546,2]
[341192304,1730586643183,-408.90419371,0.00029546,2]
[341192315,1730586686062,161.372564,0.00013973,2]
[341192317,1730587210890,162.65904,0.00013973,2]
[341192329,1730587779295,161.364009,0.00013973,2]
[341192348,1730587836228,-166.666666,0.000259,2]
[341192349,1730587836240,-164.175206,0.00026536,2]
[341192350,1730587836251,-166.666666,0.00026607,2]
[341192351,1730587836262,-164.175206,0.00026609,2]
[341192352,1730587836272,-172.962445,0.00026618,2]
[341192353,1730587836284,-83.95367892,0.00026681,2]
[341192354,1730587836330,-80.22152708,0.00026681,2]
[341192355,1730587836340,-164.175206,0.00026754,2]
[341192356,1730587836350,-164.175206,0.00026827,2]
[341192357,1730587836361,-164.175206,0.000269,2]
[341192358,1730587836370,-4593.38349828,0.00026962,2]
[341192359,1730587836382,-2894.44677953,0.00026962,2]
[341192360,1730587836394,-1661.46379641,0.00026962,2]
[341192377,1730587838356,-15750.70592578,0.00026962,2]
[341192378,1730587838368,-164.175206,0.00026973,2]
[341192379,1730587838378,-164.175206,0.00027045,2]
[341192380,1730587838393,-164.175206,0.00027118,2]
[341192381,1730587838402,-164.175206,0.00027191,2]
[341192382,1730587838412,-164.175206,0.00027264,2]
[341192383,1730587838422,-166.666666,0.00027313,2]
[341192384,1730587838432,-164.175206,0.00027336,2]
[341192385,1730587838441,-300.0,0.00027396,2]
[341192386,1730587838454,-300.0,0.00027396,2]
[341192387,1730587838465,-164.175206,0.00027409,2]
[341192388,1730587838475,-164.175206,0.00027482,2]
[341192389,1730587838485,-164.175206,0.00027555,2]
[341192390,1730587838495,-164.175206,0.00027627,2]
[341192391,1730587838505,-164.175206,0.000277,2]
[341192392,1730587838516,-164.175206,0.00027773,2]
[341192393,1730587838527,-164.175206,0.00027846,2]
[341192394,1730587838536,-164.175206,0.00027918,2]
[341192395,1730587838547,-166.666666,0.00028019,2]
[341192396,1730587838557,-170.764799,0.0002806,2]
[341192397,1730587838567,-170.764799,0.00028074,2]
[341192398,1730587838577,-170.764799,0.00028088,2]
[341192399,1730587838588,-2011.51082399,0.000281,2]
[341192400,1730587838598,-170.764799,0.00028102,2]
[341192401,1730587838609,-170.764799,0.00028116,2]
[341192402,1730587838620,-170.764799,0.0002813,2]
[341192403,1730587838632,-170.764799,0.00028144,2]
[341192404,1730587838642,-170.764799,0.00028158,2]
[341192405,1730587838653,-170.764799,0.00028172,2]
[341192406,1730587838665,-170.764799,0.00028186,2]
[341192407,1730587838674,-170.764799,0.000282,2]
[341192408,1730587838685,-742.85096189,0.00028386,2]
[341192409,1730587838697,-166.666666,0.00028725,2]
[341192410,1730587838709,-175.34194165,0.00028998,2]
[341192411,1730587838720,-5079.8972837,0.00029035,2]
[341192412,1730587838731,-500.0,0.00029082,2]
[341192413,1730587838742,-500.0,0.00029082,2]
[341192414,1730587838753,-500.0,0.00029082,2]
[341192415,1730587838764,-476.17481707,0.00029082,2]
[341192416,1730587838774,-5079.8972838,0.00029083,2]
[341192417,1730587838787,-160.42620806,0.00029083,2]
[341192418,1730587838798,-570.25372934,0.00029196,2]
[341192419,1730587838808,-454.55000006,0.00029398,8]
[341192420,1730587838819,-166.666666,0.00029431,2]
[341192421,1730587838834,-420.0,0.00029606,2]
[341192422,1730587838844,-500.0,0.00029683,5]
[341192423,1730587838853,-184.612961,0.00029809,2]
[341192424,1730587838862,-186.567927,0.00029809,2]
[341192425,1730587838872,-206.424696,0.00029809,2]
[341192426,1730587838883,-295.380737,0.00029809,2]
[341192427,1730587838893,-447.763021,0.00029809,2]
[341192428,1730587838903,-237.1605,0.0003,2]
[341192429,1730587838914,-163.889,0.0003,2]
[341192430,1730587838925,-2011.51082397,0.00030071,2]
[341192431,1730587838936,-508.047465,0.00030136,4]
[341192432,1730587838946,-500.0,0.00030136,4]
[341192433,1730587838955,-329.22709286,0.00030136,4]
[341192434,1730587838974,-170.77290714,0.00030136,4]
[341192435,1730587838983,-504.43599215,0.00030136,4]
[341192436,1730587838992,-500.0,0.00030136,4]
[341192437,1730587839002,-503.702864,0.00030136,4]
[341192438,1730587839012,-501.26315991,0.00030136,4]
[341192439,1730587839022,-500.0,0.00030136,4]
[341192440,1730587839031,-500.0,0.00030136,4]
[341192441,1730587839040,-503.64992933,0.00030136,4]
[341192442,1730587839049,-502.29166835,0.00030136,4]
[341192443,1730587839060,-500.0,0.00030136,4]
[341192444,1730587839070,-510.26438724,0.00030136,4]
[341192445,1730587839079,-507.07962546,0.00030136,4]
[341192446,1730587839088,-505.46892469,0.00030136,4]
[341192447,1730587839097,-543.32610748,0.00030136,4]
[341192448,1730587839107,-508.81551398,0.00030136,4]
[341192449,1730587839116,-500.0,0.00030136,4]
[341192450,1730587839126,-506.47893849,0.00030136,4]
[341192451,1730587839135,-500.0,0.00030136,4]
[341192452,1730587839145,-500.88062019,0.00030136,4]
[341192453,1730587839155,-504.67502788,0.00030136,4]
[341192454,1730587839166,-500.0,0.00030136,4]
[341192455,1730587839179,-500.0,0.00030136,4]
[341192456,1730587839190,-311.01888823,0.00030136,4]
[341192457,1730587839200,-567.22,0.00030136,4]
[341192458,1730587839209,-601.1829207,0.00030136,4]
[341192459,1730587839219,-500.0,0.00030136,4]
[341192460,1730587839230,-500.0,0.00030136,4]
[341192461,1730587839240,-500.0,0.00030136,4]
[341192462,1730587839252,-500.0,0.00030136,4]
[341192463,1730587839262,-500.0,0.00030136,4]
[341192464,1730587839271,-532.63,0.00030136,4]
[341192465,1730587839281,-356.60362797,0.00030136,4]
[341192466,1730587839291,-1188.49,0.00030136,3]
[341192467,1730587839301,-572.36,0.00030136,4]
[341192468,1730587839310,-420.0,0.00030136,2]
[341192469,1730587839320,-500.0,0.00030136,4]
[341192470,1730587839330,-511.79726532,0.00030136,4]
[341192471,1730587839340,-295.380737,0.00030181,2]
[341192472,1730587839349,-447.763021,0.00030181,2]
[341192473,1730587839359,-592.889,0.00030309,2]
[341192474,1730587839369,-1101.0,0.00030309,2]
[341192475,1730587839380,-2398.0,0.00030309,2]
[341192476,1730587839390,-173.556,0.00030309,2]
[341192477,1730587839399,-297.31,0.00030309,2]
[341192478,1730587839408,-153.0,0.00030329,2]
[341192479,1730587839419,-153.0,0.00030329,2]
[341192480,1730587839430,-153.0,0.00030329,2]
[341192481,1730587839440,-153.0,0.00030329,2]